[Event "46th OKU-A 2019"]
[Site "Utrecht"]
[Date "2019.06.02"]
[Round "6.12"]
[White "Sekandar, Kambiz"]
[Black "Van Rekom, Robert"]
[Result "1-0"]
[ECO "C00"]
[WhiteElo "2193"]
[BlackElo "1998"]
[Annotator "ChessBase"]
[PlyCount "75"]
[EventDate "2019.05.31"]
[EventType "swiss"]
[EventCountry "NED"]
[SourceTitle "playchess.com"]
[Source "ChessBase"]
[SourceQuality "1"]
[TimeControl "6600+10"]

1. e4 {[%emt 0:00:00]} e6 {[%emt 0:00:00]} 2. Nf3 {[%emt 0:00:00]} d5 {[%emt 0:00:07]} 3. Nc3 {[%emt 0:00:00]} d4 {[%emt 0:03:19]} 4. Ne2 {[%emt 0:00:02]} c5 {[%emt 0:00:08]} 5. c3 {[%emt 0:00:04]} dxc3 {[%emt 0:05:49]} 6. bxc3 {[%emt 0:00:21]} Nf6 {[%emt 0:01:11]} 7. Ng3 {[%emt 0:00:54]} Nc6 {[%emt 0:00:55]} 8. Bc4 {[%emt 0:03:49]} Bd6 {[%emt 0:04:59]} 9. d3 {[%emt 0:02:42]} Qa5 {[%emt 0:11:32]} 10. Bd2 {[%emt 0:02:58]} O-O {[%emt 0:01:30]} 11. O-O {[%emt 0:00:19]} b5 {[%emt 0:06:47]} 12. Bb3 {[%emt 0:00:43]} c4 {[%emt 0:18:18]} 13. Bc2 {[%emt 0:01:29]} e5 {[%emt 0:11:03]} 14. d4 {[%emt 0:02:31]} Bg4 {[%emt 0:02:16]} 15. d5 {[%emt 0:01:37]} Ne7 {[%emt 0:02:04]} 16. h3 {[%emt 0:00:26]} Bc8 {[%emt 0:06:36]} 17. a4 {[%emt 0:03:23]} Nd7 {[%emt 0:03:29]} 18. axb5 {[%emt 0:01:32]} Qxb5 {[%emt 0:00:27]} 19. Qe2 {[%emt 0:00:16]} a5 {[%emt 0:04:37]} 20. Rfb1 {[%emt 0:01:45]} Qc5 {[%emt 0:00:58]} 21. Ba4 {[%emt 0:01:40]} Qc7 {[%emt 0:00:41]} 22. Be3 {[%emt 0:01:37]} f5 {[%emt 0:09:27]} 23. Nxf5 {[%emt 0:05:00]} Nxf5 {[%emt 0:00:32]} 24. exf5 {[%emt 0:00:16]} Bb7 {[%emt 0:04:06]} 25. Rxb7 {[%emt 0:09:16]} Qxb7 {[%emt 0:00:06]} 26. Bc6 {[%emt 0:00:06]} Qc7 {[%emt 0:00:23]} 27. Bxa8 {[%emt 0:00:19]} Rxa8 {[%emt 0:00:03]} 28. Ra4 {[%emt 0:01:49]} Qb7 {[%emt 0:02:20]} 29. Qxc4 {[%emt 0:02:14]} Qb1+ {[%emt 0:00:48]} 30. Qf1 {[%emt 0:00:07]} Qb3 {[%emt 0:01:07]} 31. Qa1 {[%emt 0:01:10]} Qxd5 {[%emt 0:00:59]} 32. c4 {[%emt 0:00:08]} Qd3 {[%emt 0:01:30]} 33. Rxa5 {[%emt 0:01:44]} Rxa5 {[%emt 0:01:39]} 34. Qxa5 {[%emt 0:00:15]} Qb1+ {[%emt 0:00:06]} 35. Qe1 {[%emt 0:00:20]} Qxf5 {[%emt 0:00:13]} 36. Qd1 {[%emt 0:00:36]} e4 {[%emt 0:01:59]} 37. Ng5 {[%emt 0:05:37]} Qe5 {[%emt 0:03:06]} 38. Nxe4 {[%emt 0:00:35]} 1-0